fUSD/lending_fUSD_20240914
["ID","MTS","AMOUNT","RATE_DAILY","PERIOD"]
[338173479,1726348729079,500.0,0.00012606,2]
[338173480,1726348729353,500.0,0.00012606,2]
[338173481,1726348730258,500.0,0.00012606,2]
[338173482,1726348730569,500.0,0.00012606,2]
[338173483,1726348730885,500.0,0.00012606,2]
[338173484,1726348731228,500.0,0.00012606,2]
[338173485,1726348731668,500.0,0.00012606,2]
[338173486,1726348731856,500.0,0.00012606,2]
[338173487,1726348732766,500.0,0.00012606,2]
[338173488,1726348733082,500.0,0.00012606,2]
[338173489,1726348733412,500.0,0.00012606,2]
[338173490,1726348733753,500.0,0.00012606,2]
[338173491,1726348734488,500.0,0.00012606,2]
[338173492,1726348734616,500.0,0.00012606,2]
[338173493,1726348734733,500.0,0.00012606,2]
[338173494,1726348735063,500.0,0.00012606,2]
[338173495,1726348735330,500.0,0.00012606,2]
[338173496,1726348735628,500.0,0.00012606,2]
[338173497,1726348736514,500.0,0.00012606,2]
[338173498,1726348736905,500.0,0.00012606,2]
[338173499,1726348737240,500.0,0.00012606,2]
[338173500,1726348737691,500.0,0.00012606,2]
[338173501,1726348738471,500.0,0.00012606,2]
[338173502,1726348738804,500.0,0.00012606,2]
[338173503,1726348739127,500.0,0.00012606,2]
[338173504,1726348739456,500.0,0.00012606,2]
[338173505,1726348739790,500.0,0.00012606,2]
[338173506,1726348740224,500.0,0.00012606,2]
[338173507,1726348740613,500.0,0.00012606,2]
[338173508,1726348740741,500.0,0.00012606,2]
[338173509,1726348741084,500.0,0.00012606,2]
[338173510,1726348741418,500.0,0.00012606,2]
[338173511,1726348741768,500.0,0.00012606,2]
[338173512,1726348742105,500.0,0.00012606,2]
[338173513,1726348742456,500.0,0.00012606,2]
[338173514,1726348742810,514.0,0.00012606,2]
[338173515,1726348745402,264.63,0.00012106,2]
[338173516,1726348746968,250.0,0.00012106,2]
[338173517,1726348772141,159.69,0.00012106,2]
[338173518,1726348772354,159.69,0.00012167,2]
[338173520,1726348896774,1050.0,0.00011,2]
[338173521,1726348917274,1000.0,0.00012149,2]
[338173522,1726348964646,150.0,0.00012149,2]
[338173523,1726348975033,168.8,0.00012127,2]
[338173524,1726348983652,500.0,0.00010068,2]
[338173525,1726348983710,500.0,0.00010068,2]
[338173526,1726348984218,600.0,0.00010068,2]
[338173527,1726348984271,700.0,0.00010068,2]
[338173528,1726348985784,600.0,0.00011438,2]
[338173529,1726348986537,700.0,0.00011438,2]
[338173530,1726349030942,222.99,0.00012097,2]
[338173531,1726349042402,291.31,0.00010179,2]
[338173532,1726349042615,291.31,0.00012443,2]
[338173533,1726349050809,500.0,0.00012167,2]
[338173534,1726349051325,500.0,0.00012167,2]
[338173535,1726349051469,500.0,0.00012167,2]
[338173536,1726349051792,500.0,0.00012167,2]
[338173537,1726349052167,668.0,0.00012167,2]
[338173538,1726349052206,500.0,0.00012167,2]
[338173539,1726349052470,500.0,0.00012167,2]
[338173540,1726349052771,500.0,0.00012167,2]
[338173541,1726349053088,500.0,0.00012167,2]
[338173542,1726349053423,665.0,0.00012167,2]
[338173543,1726349122001,150.0,0.00012578,2]
[338173544,1726349125503,150.0,0.00011688,2]
[338173545,1726349126871,188.39,0.00010959,2]
[338173546,1726349170663,170.92,9.671e-05,2]
[338173547,1726349179320,17078.74,0.00012101,2]
[338173548,1726349193431,250.0,0.00012083,2]
[338173549,1726349240958,250.0,0.00012092,2]
[338173552,1726349262153,200.72,0.00012084,2]
[338173553,1726349271058,250.0,0.00012086,2]
[338173565,1726349377163,198.24,0.00012051,2]
[338173566,1726349377384,198.24,0.00012054,2]
[338173567,1726349377579,198.24,0.00012057,2]
[338173568,1726349377797,198.24,0.0001206,2]
[338173569,1726349378004,198.24,0.00012064,2]
[338173570,1726349378220,198.24,0.00012067,2]
[338173571,1726349378918,198.24,0.0001207,2]
[338173572,1726349378986,198.24,0.00012073,2]
[338173573,1726349379074,198.24,0.00012076,2]
[338173574,1726349379223,198.24,0.00012079,2]
[338173575,1726349379375,198.24,0.00012083,2]
[338173576,1726349379756,198.24,0.00012086,2]
[338173577,1726349380064,198.24,0.00012089,2]
[338173578,1726349380280,198.24,0.00012092,2]
[338173579,1726349380448,1000.0,0.000126,2]
[338173580,1726349380512,198.24,0.00012095,2]
[338173581,1726349380715,198.24,0.00012099,2]
[338173582,1726349380918,198.24,0.00012102,2]
[338173583,1726349381155,198.24,0.00012105,2]
[338173584,1726349381400,198.24,0.00012108,2]
[338173585,1726349381625,198.24,0.00012111,2]
[338173586,1726349382538,242.03,0.00012051,2]
[338173588,1726349403179,150.0,0.00012086,2]
[338173589,1726349403361,150.0,0.00012086,2]
[338173590,1726349403544,150.0,0.00012086,2]
[338173591,1726349403781,150.0,0.00012086,2]
[338173592,1726349406943,150.0,0.00012086,2]
[338173593,1726349407218,150.0,0.00012086,2]
[338173594,1726349407427,150.0,0.00012086,2]
[338173595,1726349407632,150.0,0.00012086,2]
[338173596,1726349407829,150.0,0.00012086,2]
[338173597,1726349408046,150.0,0.00012086,2]
[338173598,1726349408251,150.0,0.00012086,2]
[338173599,1726349408447,150.0,0.00012086,2]
[338173600,1726349408628,150.0,0.00012086,2]
[338173601,1726349409046,150.0,0.00012086,2]
[338173602,1726349409400,150.0,0.00012086,2]
[338173603,1726349409472,150.0,0.00012086,2]
[338173604,1726349409679,150.0,0.00012086,2]
[338173605,1726349409846,154.67203195,0.00012086,2]
[338173606,1726349410736,1000.0,0.000126,2]
[338173607,1726349424969,231.59,0.00012059,2]
[338173614,1726349431542,-659.95603,0.0001265,2]
[338173615,1726349431552,-125.46430485,0.0001268,2]
[338173616,1726349431563,-517.85511205,0.0001268,2]
[338173617,1726349431574,-1066.56431726,0.0001268,2]
[338173618,1726349431585,-3234.57076584,0.0001268,2]
[338173619,1726349431594,-300.0,0.00012699,2]
[338173621,1726349431604,-150.0,0.00012699,2]
[338173623,1726349431613,-11274.201723,0.000127,2]
[338173624,1726349431622,-1000.0,0.000127,2]
[338173626,1726349431632,-1638.0,0.000127,2]
[338173627,1726349431641,-1000.0,0.000127,2]
[338173628,1726349431650,-1000.0,0.000127,2]
[338173629,1726349431660,-582.16202813,0.00012717,2]
[338173630,1726349431669,-150.0,0.00012742,2]
[338173631,1726349431678,-150.0,0.00012771,2]
[338173632,1726349431688,-19980.78623873,0.0001278,2]
[338173633,1726349431697,-1000.0,0.0001278,2]
[338173634,1726349431706,-2167.2867,0.0001278,2]
[338173635,1726349431716,-3610.5345827,0.000128,2]
[338173636,1726349431725,-500.0,0.00012808,2]
[338173637,1726349431734,-500.0,0.00012808,2]
[338173638,1726349431743,-10232.67,0.00012808,2]
[338173639,1726349431752,-818.51,0.00012808,2]
[338173640,1726349431762,-5568.63,0.00012808,2]
[338173641,1726349431771,-482.77,0.00012808,2]
[338173642,1726349431780,-2701.73,0.00012808,2]
[338173643,1726349431789,-600.0,0.00012808,2]
[338173644,1726349431798,-700.0,0.00012808,2]
[338173645,1726349431810,-580.2,0.00012808,2]
[338173646,1726349431819,-150.99,0.00012873,2]
[338173647,1726349431828,-500.0,0.00012873,2]
[338173648,1726349431838,-330.05730729,0.00012879,2]
[338173649,1726349431848,-1170.30652008,0.00012879,2]
[338173650,1726349431858,-227638.8757582,0.0001288,2]
[338173651,1726349431867,-18462.519,0.0001288,2]
[338173652,1726349431877,-170.23710957,0.000129,2]
[338173653,1726349431887,-2677.3116,0.000129,2]
[338173654,1726349431897,-166.198302,0.000129,2]
[338173655,1726349431906,-3403.11319853,0.000129,2]
[338173656,1726349431916,-771.4651648,0.000129,2]
[338173657,1726349431926,-923.02601316,0.000129,2]
[338173658,1726349431935,-1000.0,0.00012923,2]
[338173659,1726349431945,-1000.0,0.00012923,2]
[338173660,1726349431954,-1000.0,0.00012923,2]
[338173661,1726349431963,-1000.0,0.00012923,2]
[338173662,1726349431974,-1000.0,0.00012923,2]
[338173663,1726349431983,-1000.0,0.00012923,2]
[338173664,1726349431992,-1000.0,0.00012923,2]
[338173665,1726349432001,-1000.0,0.00012923,2]
[338173666,1726349432010,-1000.0,0.00012923,2]
[338173667,1726349432019,-1000.0,0.00012923,2]
[338173668,1726349432028,-1000.0,0.00012923,2]
[338173669,1726349432038,-1000.0,0.00012923,2]
[338173670,1726349432047,-1000.0,0.00012923,2]
[338173671,1726349432057,-1000.0,0.00012923,2]
[338173672,1726349432066,-1000.0,0.00012923,2]
[338173673,1726349432076,-1000.0,0.00012923,2]
[338173674,1726349432086,-1000.0,0.00012923,2]
[338173675,1726349432095,-1000.0,0.00012923,2]
[338173676,1726349432104,-1000.0,0.00012923,2]
[338173677,1726349432113,-1000.0,0.00012923,2]
[338173678,1726349432123,-1000.0,0.00012923,2]
[338173679,1726349432132,-1000.0,0.00012923,2]
[338173680,1726349432142,-1000.0,0.00012923,2]
[338173681,1726349432151,-1000.0,0.00012923,2]
[338173682,1726349432160,-1000.0,0.00012923,2]
[338173683,1726349432170,-1000.0,0.00012923,2]
[338173684,1726349432179,-1000.0,0.00012923,2]
[338173685,1726349432189,-1000.0,0.00012923,2]
[338173686,1726349432198,-1000.0,0.00012923,2]
[338173687,1726349432208,-1000.0,0.00012923,2]
[338173688,1726349432414,-1000.0,0.00012923,2]
[338173689,1726349432434,-1000.0,0.00012923,2]
[338173690,1726349432443,-328.43836311,0.00012923,2]
[338173691,1726349432455,-671.56163689,0.00012923,2]
[338173692,1726349432464,-1000.0,0.00012923,2]
[338173693,1726349432473,-458.88821599,0.00012923,2]
[338173694,1726349432485,-541.11178401,0.00012923,2]
[338173695,1726349432494,-286.02533884,0.00012923,2]
[338173696,1726349432517,-482.73538408,0.00012923,2]
[338173700,1726349437396,-231.23927708,0.00012923,2]
[338173701,1726349437405,-1000.0,0.00012923,2]
[338173702,1726349437414,-638.68844713,0.00012923,2]
[338173703,1726349437426,-361.31155287,0.00012923,2]
[338173704,1726349437435,-1000.0,0.00012923,2]
[338173705,1726349437444,-861.68844712,0.00012923,2]
[338173706,1726349437456,-138.31155288,0.00012923,2]
[338173707,1726349437467,-651.85363172,0.00012923,2]
[338173708,1726349437491,-348.14636828,0.00012923,2]
[338173709,1726349437500,-930.0,0.00012923,2]
[338173710,1726349437509,-150.0,0.00012986,2]
[338173711,1726349437519,-158.53,0.0001299,2]
[338173712,1726349437528,-263.2636356,0.0001299,2]
[338173713,1726349437538,-974.3441339,0.00012998,2]
[338173714,1726349437549,-587.5728,0.00012998,2]
[338173715,1726349437559,-1520.98047815,0.00012998,2]
[338173716,1726349437805,900.0,0.0001258,2]
[338173717,1726349437845,-1284.56955671,0.00012998,2]
[338173718,1726349437855,-4314.98017366,0.00012998,2]
[338173721,1726349439315,-2016.437266,0.00012998,2]
[338173722,1726349439410,-1043.21965598,0.00012998,2]
[338173723,1726349439421,-1086.19883875,0.00012998,2]
[338173724,1726349439501,-1203.227177,0.00012998,2]
[338173725,1726349439512,-274.81984296,0.00012998,2]
[338173746,1726349439891,-12638.07705794,0.00012998,2]
[338173747,1726349439906,-7012.67437923,0.00012998,2]
[338173748,1726349439915,-500.0,0.00012999,2]
[338173749,1726349439924,-500.0,0.00012999,2]
[338173750,1726349439934,-216.39659864,0.00012999,2]
[338173751,1726349439943,-268.98612969,0.00012999,2]
[338173752,1726349439952,-500.0,0.00012999,2]
[338173753,1726349439962,-429.50007452,0.00012999,2]
[338173754,1726349439972,-500.0,0.00012999,2]
[338173755,1726349439981,-582.0,0.00013,2]
[338173756,1726349439990,-63688.30658413,0.00013,2]
[338173757,1726349440004,-792.96,0.00013,2]
[338173758,1726349440014,-676.78766256,0.00013,2]
[338173759,1726349440058,-900.71549999,0.00013,2]
[338173760,1726349440070,-344.62556429,0.00013,2]
[338173784,1726349445363,-4195.18146992,0.00013,2]
[338173785,1726349445447,-599.38775637,0.00013,2]
[338173786,1726349445461,-18941.82842664,0.00013,2]
[338173787,1726349445551,-3211.46609796,0.00013,2]
[338173788,1726349445561,-14071.95317627,0.00013,2]
[338173789,1726349445572,-215110.53511958,0.00013,2]
[338173790,1726349445583,-5380.3,0.00013,2]
[338173793,1726349474401,167.08,0.00012567,2]
[338173794,1726349489033,502.15709234,0.00011164,2]
[338173795,1726349493159,500.0,0.00010068,2]
[338173796,1726349508648,500.0,0.00011164,2]
[338173797,1726349508768,600.0,0.00011164,2]
[338173798,1726349510260,500.0,0.00012534,2]
[338173799,1726349510944,600.0,0.00012534,2]
[338173800,1726349559186,527.66,0.00012331,2]
[338173801,1726349587253,297.05,0.00010407,2]
[338173802,1726349606484,243.5,0.00012325,2]
[338173803,1726349624189,156.36,0.00010959,2]
[338173804,1726349653486,321.33,0.00012235,2]
[338173805,1726349721615,465.87,0.00012315,2]
[338173806,1726349761436,250.0,0.0001213,2]
[338173807,1726349766164,28784.57,0.00012227,2]
[338173808,1726349776087,170.92,9.696e-05,2]
[338173809,1726349792885,250.0,0.0001212,2]
[338173810,1726349804011,250.0,0.0001212,2]
[338173811,1726349863318,178.59,0.00012057,2]
[338173812,1726349864003,178.59,0.0001206,2]
[338173813,1726349864058,178.59,0.00012063,2]
[338173814,1726349864171,178.59,0.00012067,2]
[338173815,1726349864244,178.59,0.0001207,2]
[338173816,1726349864436,178.59,0.00012073,2]
[338173817,1726349867565,178.59,0.00012076,2]
[338173818,1726349867784,178.59,0.00012079,2]
[338173819,1726349868020,178.59,0.00012082,2]
[338173820,1726349868430,178.59,0.00012086,2]
[338173821,1726349868628,178.59,0.00012089,2]
[338173822,1726349869061,178.59,0.00012092,2]
[338173823,1726349869473,178.59,0.00012095,2]
[338173824,1726349869559,178.59,0.00012098,2]
[338173825,1726349869708,178.59,0.00012102,2]
[338173826,1726349870119,178.59,0.00012105,2]
[338173827,1726349870350,178.59,0.00012108,2]
[338173828,1726349870615,178.59,0.00012111,2]
[338173829,1726349870812,178.59,0.00012114,2]
[338173830,1726349871024,178.59,0.00012117,2]
[338173831,1726349904939,313.54,0.00012061,2]
[338173832,1726349984330,800.0,0.00012046,2]
[338173834,1726350059543,263.83,0.00011959,2]
[338173835,1726350209299,200.0,0.00011899,2]
[338173836,1726350239554,-300.0,0.00012667,2]
[338173837,1726350239578,-10677.0,0.00012668,2]
[338173838,1726350239601,-1481.0,0.00012669,2]
[338173839,1726350239625,-297.05,0.00012671,2]
[338173840,1726350239650,-200.0,0.00012702,2]
[338173841,1726350239675,-24909.10067948,0.00012702,2]
[338173842,1726350239698,-421.34449989,0.00012727,2]
[338173843,1726350322672,267.34,0.00010173,2]
[338173844,1726350322922,267.34,0.00012437,2]
[338173845,1726350329583,150.0,0.00011688,2]
[338173846,1726350329913,150.0,0.00012121,2]
[338173847,1726350330331,150.0,0.00012553,2]
[338173848,1726350335415,250.0,0.00011977,2]
[338173849,1726350362881,1000.0,0.00011977,2]
[338173850,1726350369364,250.0,0.00011984,2]
[338173851,1726350389838,800.0,0.00011984,2]
[338173852,1726350406153,500.0,0.0001199,2]
[338173853,1726350424500,500.0,0.00012,2]
[338173854,1726350439633,500.0,0.000125,2]
[338173855,1726350441359,331.67,0.00012001,2]
[338173856,1726350441575,331.67,0.00012004,2]
[338173857,1726350441768,331.67,0.00012008,2]
[338173858,1726350442174,331.67,0.00012011,2]
[338173859,1726350442337,331.67,0.00012014,2]
[338173860,1726350442431,331.67,0.00012017,2]
[338173861,1726350442618,331.67,0.0001202,2]
[338173862,1726350442852,331.67,0.00012023,2]
[338173863,1726350443052,331.67,0.00012026,2]
[338173864,1726350443266,331.67,0.0001203,2]
[338173865,1726350443473,331.67,0.00012033,2]
[338173866,1726350443668,331.67,0.00012036,2]
[338173867,1726350444436,331.67,0.00012039,2]
[338173868,1726350444589,331.67,0.00012042,2]
[338173869,1726350444635,211.7,0.00012001,2]
[338173870,1726350444709,331.67,0.00012045,2]
[338173871,1726350444831,331.67,0.00012049,2]
[338173872,1726350445010,331.67,0.00012052,2]
[338173873,1726350445367,331.67,0.00012055,2]
[338173874,1726350445858,331.67,0.00012058,2]
[338173875,1726350445921,331.67,0.00012061,2]
[338173877,1726350476548,360.0,0.00012001,2]
[338173879,1726350554044,500.0,0.00011164,2]
[338173880,1726350554870,540.13,0.00012,2]
[338173881,1726350556140,500.0,0.00012534,2]
[338173883,1726350592831,-1484.0,0.000127,2]
[338173884,1726350592852,-1000.0,0.00012727,2]
[338173885,1726350592874,-44807.0,0.00012749,2]
[338173886,1726350603176,219.79,0.00012004,3]
[338173894,1726350631519,-150.0,0.00012767,2]
[338173895,1726350631529,-500.0,0.0001278,2]
[338173896,1726350631538,-1484.6869,0.0001278,2]
[338173897,1726350631547,-150.0,0.00012799,2]
[338173898,1726350631556,-1300.2760918,0.000128,2]
[338173899,1726350631568,-1032.01313129,0.000128,2]
[338173900,1726350631579,-1740.0,0.000128,2]
[338173901,1726350631590,-3498.10131452,0.000128,2]
[338173902,1726350631602,-2305.44210902,0.000128,2]
[338173903,1726350631611,-500.0,0.00012808,2]
[338173904,1726350631620,-499.99,0.00012854,2]
[338173905,1726350631629,-150.99,0.00012854,2]
[338173906,1726350631638,-795.54,0.00012863,2]
[338173907,1726350631647,-259.3177,0.0001287,2]
[338173913,1726350631792,-500.0,0.00012873,2]
[338173917,1726350631853,-210.91,0.00012875,2]
[338173918,1726350631863,-217.804,0.00012875,2]
[338173920,1726350631872,-393.33369099,0.0001289,2]
[338173922,1726350631883,-39.99630901,0.0001289,2]
[338173924,1726350631891,-433.33,0.0001289,2]
[338173925,1726350631901,-433.33,0.0001289,2]
[338173927,1726350631910,-179.99,0.00012893,2]
[338173928,1726350631922,-1723.66926454,0.000129,2]
[338173929,1726350631947,-8568.89612749,0.000129,2]
[338173930,1726350631960,-2425.5691086,0.000129,2]
[338173931,1726350631971,-250.33780553,0.000129,2]
[338173932,1726350631992,-499.60047608,0.000129,2]
[338173933,1726350632003,-871.5527439,0.000129,2]
[338173934,1726350632014,-2737.33492461,0.000129,2]
[338173935,1726350632026,-1368.4452503,0.000129,2]
[338173936,1726350632054,-988.81762048,0.000129,2]
[338173937,1726350632191,-50933.69431745,0.000129,2]
[338173938,1726350632202,-395.91278179,0.000129,2]
[338173939,1726350632212,-356.88107954,0.000129,2]
[338173940,1726350632224,-1280.01432601,0.000129,2]
[338173944,1726350637564,-433.33,0.0001289,2]
[338173945,1726350637573,-433.33,0.0001289,2]
[338173946,1726350637582,-433.33,0.0001289,2]
[338173947,1726350637591,-433.33,0.0001289,2]
[338173948,1726350637600,-433.33,0.0001289,2]
[338173949,1726350637609,-433.33,0.0001289,2]
[338173950,1726350637618,-433.33,0.0001289,2]
[338173951,1726350637627,-433.33,0.0001289,2]
[338173952,1726350637636,-433.33,0.0001289,2]
[338173953,1726350637645,-433.33,0.0001289,2]
[338173954,1726350637654,-433.33,0.0001289,2]
[338173955,1726350637663,-433.33,0.0001289,2]
[338173956,1726350637672,-84.12382823,0.0001289,2]
[338173957,1726350637684,-349.20617177,0.0001289,2]
[338173958,1726350637693,-433.33,0.0001289,2]
[338173959,1726350637702,-419.86113307,0.0001289,2]
[338173960,1726350637713,-13.46886693,0.0001289,2]
[338173961,1726350637722,-433.33,0.0001289,2]
[338173962,1726350637731,-205.37102926,0.0001289,2]
[338173963,1726350637754,-227.95897074,0.0001289,2]
[338173964,1726350637763,-433.33,0.0001289,2]
[338173965,1726350637772,-433.33,0.0001289,2]
[338173966,1726350637781,-433.33,0.0001289,2]
[338173967,1726350637790,-433.33,0.0001289,2]
[338173968,1726350637798,-217.46422926,0.0001289,2]
[338173969,1726350637809,-215.86577074,0.0001289,2]
[338173970,1726350637820,-39.13422926,0.000129,2]
[338173976,1726350639536,-433.33,0.0001289,2]
[338173977,1726350639546,-89.44982189,0.0001289,2]
[338173981,1726350640560,-343.88017811,0.0001289,2]
[338173982,1726350640569,-433.33,0.0001289,2]
[338173983,1726350640579,-433.33,0.0001289,2]
[338173984,1726350640588,-433.33,0.0001289,2]
[338173985,1726350640597,-433.33,0.0001289,2]
[338173986,1726350640606,-433.33,0.0001289,2]
[338173987,1726350640616,-1069.32564499,0.000129,2]
[338173988,1726350640627,-2778.37187532,0.000129,2]
[338173989,1726350640638,-27750.57478967,0.000129,2]
[338173990,1726350640661,-4580.74187796,0.000129,2]
[338173991,1726350640672,-3321.51973653,0.000129,2]
[338174004,1726350642607,-254.7290866,0.000128,2]
[338174005,1726350642664,-1000.71033375,0.000128,2]
[338174008,1726350642938,-3641.65019376,0.000128,2]
[338174009,1726350642949,-500.0,0.000128,2]
[338174093,1726350645655,-714.48428589,0.000128,2]
[338174094,1726350645666,-433.33,0.0001289,2]
[338174095,1726350645676,-433.33,0.0001289,2]
[338174096,1726350645685,-433.33,0.0001289,2]
[338174097,1726350645695,-433.33,0.0001289,2]
[338174098,1726350645706,-433.33,0.0001289,2]
[338174099,1726350645715,-433.33,0.0001289,2]
[338174100,1726350645726,-31644.67071995,0.000129,2]
[338174101,1726350645736,-20237.5608,0.000129,2]
[338174102,1726350645745,-588.9124,0.000129,2]
[338174103,1726350645755,-740.0578,0.000129,2]
[338174104,1726350645765,-2122.6584,0.000129,2]
[338174105,1726350645775,-170.23710957,0.000129,2]
[338174106,1726350645784,-534.964,0.000129,2]
[338174107,1726350645794,-7500.0,0.000129,2]
[338174108,1726350646005,-156.10988812,0.000129,2]
[338174109,1726350646015,-172.31316663,0.000129,2]
[338174110,1726350646024,-306.99922809,0.000129,2]
[338174111,1726350646034,-193.8603279,0.000129,2]
[338174112,1726350646043,-617.65628464,0.000129,2]
[338174113,1726350646053,-500.0,0.00012973,2]
[338174114,1726350646063,-161.2226698,0.00012986,2]
[338174115,1726350646072,-175.5090904,0.0001299,2]
[338174116,1726350646082,-175.5090904,0.0001299,2]
[338174117,1726350646091,-175.5090904,0.0001299,2]
[338174118,1726350646100,-156.55,0.0001299,2]
[338174119,1726350646110,-156.55,0.0001299,2]
[338174120,1726350646119,-433.33,0.0001299,2]
[338174121,1726350646128,-433.33,0.0001299,2]
[338174122,1726350646138,-500.0,0.00012999,2]
[338174123,1726350646147,-485.38272833,0.00012999,2]
[338174124,1726350646156,-500.0,0.00012999,2]
[338174125,1726350646165,-500.0,0.00012999,2]
[338174126,1726350646175,-500.0,0.00012999,2]
[338174127,1726350646184,-236.55006707,0.00012999,2]
[338174128,1726350646193,-613.0,0.00013,2]
[338174129,1726350646203,-5006.21326462,0.00013,2]
[338174130,1726350646241,-77440.4718171,0.00013,2]
[338174131,1726350646250,-24145.06478088,0.00013,2]
[338174132,1726350646272,-2385.21760179,0.00013,2]
[338174133,1726350646283,-1338.8375,0.00013,2]
[338174134,1726350649600,882.6,0.00010959,2]
[338174135,1726350658370,500.0,0.00011164,2]
[338174136,1726350701741,1050.0,0.00011,2]
[338174137,1726350795585,8229.03,0.0001244,2]
[338174138,1726350850201,500.0,0.000123,2]
[338174139,1726350854455,250.0,0.00012179,2]
[338174140,1726350868692,168.41,0.00010959,2]
[338174141,1726350868896,273.01,0.0001024,2]
[338174142,1726350869157,273.01,0.00012504,2]
[338174143,1726350930841,500.0,0.00011164,2]
[338174144,1726350933205,500.0,0.00012534,2]
[338174145,1726350976920,402.14,0.00012066,2]
[338174146,1726350979081,250.0,0.00012066,2]
[338174147,1726350983406,150.0,0.000126,2]
[338174148,1726350989517,773.72014324,0.000126,2]
[338174149,1726350995442,712.0,0.0001203,2]
[338174150,1726351023162,6649.58513266,0.000126,2]
[338174152,1726351087787,270.06,0.00012034,2]
[338174153,1726351348143,7638.47,0.00011995,2]
[338174154,1726351351203,191.057044,0.00012635,2]
[338174155,1726351359543,276.78,0.00010959,2]
[338174156,1726351362636,250.0,0.00011995,2]
[338174157,1726351364537,338.72,0.00010077,2]
[338174158,1726351364873,338.72,0.00012341,2]
[338174159,1726351370067,230.65,0.00010959,2]
[338174160,1726351378283,250.0,0.00011995,2]
[338174161,1726351380565,192.2,0.00010959,2]
[338174162,1726351391071,160.17,0.00010959,2]
[338174163,1726351401612,800.88,0.00010959,2]
[338174164,1726351424990,1467.27,0.00012004,2]
[338174165,1726351434156,188.69,0.00010959,2]
[338174166,1726351441932,297.58,0.00011985,2]
[338174167,1726351496270,151.0,0.00012034,2]
[338174168,1726351496665,298.0,0.00012034,2]
[338174169,1726351536454,150.00000001,0.00011688,2]
[338174170,1726351547465,250.0,0.00011974,2]
[338174172,1726351607337,597.43,0.00011961,2]
[338174173,1726351609823,491.29,0.00011961,2]
[338174174,1726351622264,1885.52,0.00011961,2]
[338174177,1726351632941,750.0,0.00011972,2]
[338174178,1726351637425,1548.95,0.00011972,2]
[338174179,1726351673790,1000.0,0.0001199,2]
[338174180,1726351701965,610.52,0.00011983,2]
[338174181,1726351798401,-300.0,0.00012699,2]
[338174182,1726351798424,-176.7468,0.000127,2]
[338174183,1726351798447,-268.0911,0.000127,2]
[338174184,1726351798469,-5916.8581,0.000127,2]
[338174185,1726351798496,-7048.5904,0.000127,2]
[338174186,1726351798518,-947.4579,0.000127,2]
[338174187,1726351798542,-1289.8741,0.000127,2]